[Event "Early-Titled-Tuesday-Blitz-March-26-2024"]
[Site "Chess.com"]
[Date "2024.03.26"]
[Round "3"]
[White "Knightmare1014"]
[Black "noblerone"]
[Result "0-1"]
[WhiteElo "2326"]
[BlackElo "2571"]
[TimeControl "180+1"]
[EndTime "8:29:31 PDT"]
[Termination "noblerone won by resignation"]

1. e4 {[%clk 0:03:00.9]} 1... c5 {[%clk 0:02:51.8]} 2. Nf3 {[%clk 0:03:00]} 2...
e6 {[%clk 0:02:46]} 3. d4 {[%clk 0:02:58.4]} 3... cxd4 {[%clk 0:02:46.9]} 4.
Nxd4 {[%clk 0:02:54.6]} 4... Qb6 {[%clk 0:02:44.5]} 5. Nc3 {[%clk 0:02:45.8]}
5... Bc5 {[%clk 0:02:40.8]} 6. Be3 {[%clk 0:02:35.6]} 6... Nc6 {[%clk 0:02:40]}
7. Nxc6 {[%clk 0:02:06.8]} 7... Bxe3 {[%clk 0:02:39.3]} 8. fxe3 {[%clk 0:02:00]}
8... Qxe3+ {[%clk 0:02:39.4]} 9. Qe2 {[%clk 0:01:56.9]} 9... Qxe2+ {[%clk
0:02:36.6]} 10. Bxe2 {[%clk 0:01:57.8]} 10... bxc6 {[%clk 0:02:37.3]} 11. O-O
{[%clk 0:01:58]} 11... e5 {[%clk 0:02:27.6]} 12. Rad1 {[%clk 0:01:54.3]} 12...
Ke7 {[%clk 0:02:22.5]} 13. Bc4 {[%clk 0:01:52.6]} 13... Nf6 {[%clk 0:02:21.5]}
14. h3 {[%clk 0:01:46.2]} 14... d6 {[%clk 0:02:21.2]} 15. a3 {[%clk 0:01:39.8]}
15... Be6 {[%clk 0:02:19.2]} 16. Be2 {[%clk 0:01:34.2]} 16... Rab8 {[%clk
0:02:17.3]} 17. b4 {[%clk 0:01:32.3]} 17... Rhc8 {[%clk 0:01:54.6]} 18. g4
{[%clk 0:01:25.8]} 18... h6 {[%clk 0:01:53.8]} 19. Rf3 {[%clk 0:01:24.1]} 19...
Ne8 {[%clk 0:01:00.9]} 20. Na4 {[%clk 0:00:59.5]} 20... Nc7 {[%clk 0:00:43.7]}
21. Bf1 {[%clk 0:00:50.8]} 21... Nb5 {[%clk 0:00:41]} 22. Rfd3 {[%clk
0:00:48.3]} 22... Rd8 {[%clk 0:00:31.7]} 23. Nb2 {[%clk 0:00:43.8]} 23... g6
{[%clk 0:00:27]} 24. c4 {[%clk 0:00:31.6]} 24... Nd4 {[%clk 0:00:26.8]} 25. Rc3
{[%clk 0:00:26.9]} 25... f5 {[%clk 0:00:25.1]} 26. exf5 {[%clk 0:00:23.4]} 26...
gxf5 {[%clk 0:00:26]} 27. gxf5 {[%clk 0:00:23.7]} 27... Bxf5 {[%clk 0:00:26.7]}
28. Re3 {[%clk 0:00:20.3]} 28... Rg8+ {[%clk 0:00:26.7]} 29. Kf2 {[%clk
0:00:19.6]} 29... Be6 {[%clk 0:00:25.2]} 30. Na4 {[%clk 0:00:17.1]} 30... Rbf8+
{[%clk 0:00:25.2]} 31. Ke1 {[%clk 0:00:16.8]} 31... Rg1 {[%clk 0:00:23.6]} 32.
Kd2 {[%clk 0:00:14.4]} 32... Rfxf1 {[%clk 0:00:23.1]} 33. Rxf1 {[%clk
0:00:14.5]} 33... Rxf1 {[%clk 0:00:24]} 34. Nc3 {[%clk 0:00:13]} 34... Rf2+
{[%clk 0:00:24]} 35. Kc1 {[%clk 0:00:12]} 35... Rf3 {[%clk 0:00:24.1]} 36. Kd2
{[%clk 0:00:08.5]} 36... Rxe3 {[%clk 0:00:23]} 37. Kxe3 {[%clk 0:00:09.4]} 37...
Bxc4 {[%clk 0:00:23.4]} 38. Ne4 {[%clk 0:00:09.4]} 38... Be6 {[%clk 0:00:21.4]}
39. a4 {[%clk 0:00:08.6]} 39... Bb3 {[%clk 0:00:20.2]} 40. b5 {[%clk 0:00:08.2]}
40... cxb5 {[%clk 0:00:21.1]} 41. axb5 {[%clk 0:00:08.4]} 41... Bc4 {[%clk
0:00:20.1]} 42. Nd2 {[%clk 0:00:07.1]} 42... Ke6 {[%clk 0:00:20.4]} 43. Nxc4
{[%clk 0:00:06.9]} 43... d5 {[%clk 0:00:19.1]} 44. Na5 {[%clk 0:00:06.3]} 44...
Nxb5 {[%clk 0:00:18.5]} 45. Nc6 {[%clk 0:00:05.8]} 45... a6 {[%clk 0:00:19]} 46.
Nb8 {[%clk 0:00:04.5]} 46... a5 {[%clk 0:00:18.3]} 47. Nc6 {[%clk 0:00:02.5]}
47... a4 {[%clk 0:00:18.1]} 48. Nb4 {[%clk 0:00:02.8]} 48... a3 {[%clk
0:00:18.4]} 49. Kd3 {[%clk 0:00:03.3]} 49... Nd6 {[%clk 0:00:18.6]} 50. Ke3
{[%clk 0:00:03.4]} 50... Nc4+ {[%clk 0:00:18.4]} 51. Kd3 {[%clk 0:00:03.7]}
51... Nd6 {[%clk 0:00:16.9]} 52. Ke3 {[%clk 0:00:04.1]} 52... Nf5+ {[%clk
0:00:17.8]} 53. Kd3 {[%clk 0:00:04.4]} 53... h5 {[%clk 0:00:18.2]} 54. Ke2
{[%clk 0:00:04.2]} 54... e4 {[%clk 0:00:18.1]} 55. Kf2 {[%clk 0:00:04]} 55...
Ke5 {[%clk 0:00:18.5]} 56. Ke2 {[%clk 0:00:04.1]} 56... d4 {[%clk 0:00:18.7]}
57. Nc6+ {[%clk 0:00:04]} 57... Kf4 {[%clk 0:00:18.2]} 58. Kf2 {[%clk
0:00:03.3]} 58... a2 {[%clk 0:00:18.4]} 59. Nb4 {[%clk 0:00:02.2]} 59... a1=Q
{[%clk 0:00:17.6]} 60. Nd5+ {[%clk 0:00:01.9]} 60... Ke5 {[%clk 0:00:18]} 61.
Nb4 {[%clk 0:00:01.6]} 61... Qb2+ {[%clk 0:00:18]} 62. Kf1 {[%clk 0:00:01.9]}
62... Qxb4 {[%clk 0:00:17.8]} 63. Kg2 {[%clk 0:00:01.7]} 63... Qb3 {[%clk
0:00:18]} 64. h4 {[%clk 0:00:01.9]} 64... Kd5 {[%clk 0:00:17]} 65. Kh2 {[%clk
0:00:01.7]} 65... Ke5 {[%clk 0:00:17.5]} 66. Kg2 {[%clk 0:00:01.8]} 66... Kf4
{[%clk 0:00:18.1]} 67. Kg1 {[%clk 0:00:02.1]} 67... Qb2 {[%clk 0:00:18.1]} 68.
Kf1 {[%clk 0:00:02.4]} 68... Kf3 {[%clk 0:00:18.3]} 0-1

[Event "Early-Titled-Tuesday-Blitz-March-26-2024"]
[Site "Chess.com"]
[Date "2024.03.26"]
[Round "3"]
[White "lilleper1"]
[Black "amiralfio"]
[Result "1/2-1/2"]
[WhiteElo "2918"]
[BlackElo "2744"]
[TimeControl "180+1"]
[EndTime "8:29:32 PDT"]
[Termination "Game drawn by repetition"]

1. Nf3 {[%clk 0:03:00.9]} 1... Nf6 {[%clk 0:02:59.7]} 2. c4 {[%clk 0:03:00.4]}
2... c6 {[%clk 0:02:59.8]} 3. g3 {[%clk 0:02:56.3]} 3... g6 {[%clk 0:02:59.7]}
4. b3 {[%clk 0:02:55.9]} 4... Bg7 {[%clk 0:02:59.9]} 5. Bb2 {[%clk 0:02:56.3]}
5... O-O {[%clk 0:03:00]} 6. Bg2 {[%clk 0:02:56.6]} 6... d5 {[%clk 0:03:00]} 7.
O-O {[%clk 0:02:56.4]} 7... a5 {[%clk 0:02:59.2]} 8. Nc3 {[%clk 0:02:46]} 8...
d4 {[%clk 0:02:47.3]} 9. Na4 {[%clk 0:02:43.7]} 9... d3 {[%clk 0:02:08.7]} 10.
exd3 {[%clk 0:02:39]} 10... Qxd3 {[%clk 0:02:09.6]} 11. Nb6 {[%clk 0:02:37.1]}
11... Ra6 {[%clk 0:02:07.2]} 12. Nxc8 {[%clk 0:02:27.4]} 12... Rxc8 {[%clk
0:02:08.1]} 13. Ne5 {[%clk 0:02:25.8]} 13... Qd6 {[%clk 0:02:05.8]} 14. d4
{[%clk 0:02:21.8]} 14... Nbd7 {[%clk 0:02:01]} 15. Qe2 {[%clk 0:02:19.1]} 15...
Raa8 {[%clk 0:02:00.5]} 16. Rfe1 {[%clk 0:02:17.8]} 16... Re8 {[%clk 0:02:00.3]}
17. Rad1 {[%clk 0:02:10]} 17... Rad8 {[%clk 0:01:59.8]} 18. Bc1 {[%clk
0:01:59.4]} 18... Qc7 {[%clk 0:01:54.1]} 19. Bf4 {[%clk 0:01:58.7]} 19... Nxe5
{[%clk 0:01:51.2]} 20. Bxe5 {[%clk 0:01:45.5]} 20... Qb6 {[%clk 0:01:48.2]} 21.
c5 {[%clk 0:01:34.3]} 21... Qb4 {[%clk 0:01:41]} 22. a3 {[%clk 0:00:52.9]} 22...
Qxa3 {[%clk 0:01:39.5]} 23. Ra1 {[%clk 0:00:52.2]} 23... Qb4 {[%clk 0:01:31.4]}
24. Qc2 {[%clk 0:00:30.4]} 24... Nd5 {[%clk 0:01:14.3]} 25. Rec1 {[%clk
0:00:20.6]} 25... Bh6 {[%clk 0:00:48.3]} 26. Ra4 {[%clk 0:00:16.8]} 26... Qd2
{[%clk 0:00:39.8]} 27. Qxd2 {[%clk 0:00:15.3]} 27... Bxd2 {[%clk 0:00:40.7]} 28.
Rd1 {[%clk 0:00:15.9]} 28... Bb4 {[%clk 0:00:31.8]} 29. Raa1 {[%clk 0:00:12.2]}
29... f6 {[%clk 0:00:30.9]} 30. Bxd5+ {[%clk 0:00:11.6]} 30... Rxd5 {[%clk
0:00:30.7]} 31. Bc7 {[%clk 0:00:12.5]} 31... Ra8 {[%clk 0:00:21.4]} 32. Kf1
{[%clk 0:00:10.7]} 32... Kf7 {[%clk 0:00:21.5]} 33. Ke2 {[%clk 0:00:10.6]} 33...
g5 {[%clk 0:00:21.1]} 34. Ke3 {[%clk 0:00:10]} 34... Rd7 {[%clk 0:00:20.8]} 35.
Bb6 {[%clk 0:00:09.7]} 35... h5 {[%clk 0:00:18.7]} 36. h3 {[%clk 0:00:09.3]}
36... Ke6 {[%clk 0:00:17]} 37. g4 {[%clk 0:00:07.6]} 37... hxg4 {[%clk 0:00:15]}
38. hxg4 {[%clk 0:00:08.5]} 38... Rh8 {[%clk 0:00:14.9]} 39. Bxa5 {[%clk
0:00:08]} 39... Bxa5 {[%clk 0:00:14.7]} 40. Rxa5 {[%clk 0:00:08.9]} 40... Rh3+
{[%clk 0:00:14]} 41. f3 {[%clk 0:00:09.4]} 41... Rh2 {[%clk 0:00:14.6]} 42. Ra4
{[%clk 0:00:09.1]} 42... Rb2 {[%clk 0:00:14.3]} 43. Rb4 {[%clk 0:00:09.4]} 43...
Rc2 {[%clk 0:00:14.5]} 44. Kd3 {[%clk 0:00:09.1]} 44... Rh2 {[%clk 0:00:14.8]}
45. Re1+ {[%clk 0:00:09.3]} 45... Kf7 {[%clk 0:00:14.9]} 46. Ke3 {[%clk
0:00:08.6]} 46... Rh3 {[%clk 0:00:10.7]} 47. Ke4 {[%clk 0:00:08.6]} 47... Rh2
{[%clk 0:00:10.6]} 48. Rb6 {[%clk 0:00:08.3]} 48... Rd2 {[%clk 0:00:09.7]} 49.
Rb4 {[%clk 0:00:07.5]} 49... Rd5 {[%clk 0:00:10.1]} 50. Ke3 {[%clk 0:00:07]}
50... Rc2 {[%clk 0:00:05.4]} 51. Rxb7 {[%clk 0:00:07]} 51... Kg6 {[%clk
0:00:03]} 52. Rxe7 {[%clk 0:00:06.1]} 52... Rc3+ {[%clk 0:00:03.1]} 53. Kf2
{[%clk 0:00:05.5]} 53... Rxd4 {[%clk 0:00:02.5]} 54. R7e3 {[%clk 0:00:04.5]}
54... Rc2+ {[%clk 0:00:02.6]} 55. R1e2 {[%clk 0:00:04.8]} 55... Rxc5 {[%clk
0:00:03]} 56. Re8 {[%clk 0:00:04.3]} 56... Rd3 {[%clk 0:00:03.1]} 57. R2e7
{[%clk 0:00:03.6]} 57... Rc2+ {[%clk 0:00:03.3]} 58. Kg3 {[%clk 0:00:03.7]}
58... Rcc3 {[%clk 0:00:03.9]} 59. Rg8+ {[%clk 0:00:02.7]} 59... Kh6 {[%clk
0:00:04.4]} 60. Rh8+ {[%clk 0:00:03.1]} 60... Kg6 {[%clk 0:00:04.6]} 61. Rg8+
{[%clk 0:00:03.7]} 61... Kh6 {[%clk 0:00:05]} 62. Rh8+ {[%clk 0:00:03.4]} 62...
Kg6 {[%clk 0:00:05.5]} 63. Rg8+ {[%clk 0:00:04]} 1/2-1/2

[Event "Early-Titled-Tuesday-Blitz-March-26-2024"]
[Site "Chess.com"]
[Date "2024.03.26"]
[Round "3"]
[White "SaiAgni_98"]
[Black "Fore_Man"]
[Result "1-0"]
[WhiteElo "2521"]
[BlackElo "2275"]
[TimeControl "180+1"]
[EndTime "8:29:34 PDT"]
[Termination "SaiAgni_98 won by checkmate"]

1. e4 {[%clk 0:03:00.9]} 1... c5 {[%clk 0:02:59.5]} 2. Nc3 {[%clk 0:03:00.8]}
2... Nc6 {[%clk 0:02:59]} 3. f4 {[%clk 0:03:01]} 3... e6 {[%clk 0:02:58.9]} 4.
e5 {[%clk 0:02:52.4]} 4... d6 {[%clk 0:02:56.5]} 5. exd6 {[%clk 0:02:52.4]} 5...
Bxd6 {[%clk 0:02:56.5]} 6. d3 {[%clk 0:02:46.8]} 6... Nge7 {[%clk 0:02:53.5]} 7.
Nf3 {[%clk 0:02:46.5]} 7... O-O {[%clk 0:02:51.9]} 8. g3 {[%clk 0:02:44.4]} 8...
b6 {[%clk 0:02:50]} 9. Bg2 {[%clk 0:02:44.5]} 9... Bb7 {[%clk 0:02:50.4]} 10.
O-O {[%clk 0:02:44.6]} 10... Rb8 {[%clk 0:02:48.3]} 11. Ne4 {[%clk 0:02:44.7]}
11... Bc7 {[%clk 0:02:48.1]} 12. b3 {[%clk 0:02:36.6]} 12... Nd4 {[%clk
0:02:44.6]} 13. Bb2 {[%clk 0:02:36.4]} 13... Nec6 {[%clk 0:02:40.4]} 14. Nfg5
{[%clk 0:02:27.6]} 14... h6 {[%clk 0:02:27.2]} 15. Qh5 {[%clk 0:02:22]} 15... f5
{[%clk 0:01:48.8]} 16. Qg6 {[%clk 0:02:04.8]} 16... hxg5 {[%clk 0:01:30.4]} 17.
Nxg5 {[%clk 0:02:05.7]} 17... Rf6 {[%clk 0:00:51.8]} 18. Qh7+ {[%clk 0:02:05.7]}
18... Kf8 {[%clk 0:00:52.1]} 19. Qh8+ {[%clk 0:02:01.6]} 19... Ke7 {[%clk
0:00:51.7]} 20. Qxg7+ {[%clk 0:02:02.5]} 20... Kd6 {[%clk 0:00:51.9]} 21. Nf7+
{[%clk 0:01:33.3]} 21... Rxf7 {[%clk 0:00:50.6]} 22. Qxf7 {[%clk 0:01:34.2]}
22... Qg8 {[%clk 0:00:40.4]} 23. Qxg8 {[%clk 0:01:29.3]} 23... Rxg8 {[%clk
0:00:41.3]} 24. c3 {[%clk 0:01:28.1]} 24... Nc2 {[%clk 0:00:27.7]} 25. Rac1
{[%clk 0:01:14.7]} 25... Ne3 {[%clk 0:00:27.6]} 26. Rf2 {[%clk 0:01:02.2]} 26...
Nxg2 {[%clk 0:00:26.1]} 27. Rxg2 {[%clk 0:01:03.1]} 27... Ne7 {[%clk 0:00:25.1]}
28. Re2 {[%clk 0:01:01.3]} 28... Kd7 {[%clk 0:00:22.9]} 29. Kf2 {[%clk
0:00:57.1]} 29... Bd6 {[%clk 0:00:20.1]} 30. Rce1 {[%clk 0:00:54.9]} 30... Rg6
{[%clk 0:00:19.8]} 31. c4 {[%clk 0:00:54.5]} 31... a6 {[%clk 0:00:17.5]} 32. d4
{[%clk 0:00:53]} 32... cxd4 {[%clk 0:00:16.2]} 33. Bxd4 {[%clk 0:00:53.9]} 33...
Bc5 {[%clk 0:00:16]} 34. Bxc5 {[%clk 0:00:50.2]} 34... bxc5 {[%clk 0:00:16.9]}
35. Re5 {[%clk 0:00:50.2]} 35... Kd6 {[%clk 0:00:13.9]} 36. Rd1+ {[%clk
0:00:49.5]} 36... Kc7 {[%clk 0:00:12.4]} 37. Rxc5+ {[%clk 0:00:49.2]} 37... Kb6
{[%clk 0:00:12.8]} 38. Re5 {[%clk 0:00:44.8]} 38... Nc6 {[%clk 0:00:12.1]} 39.
Rd6 {[%clk 0:00:43.3]} 39... Rh6 {[%clk 0:00:09.1]} 40. h4 {[%clk 0:00:42.7]}
40... Rh8 {[%clk 0:00:04]} 41. Rexe6 {[%clk 0:00:40.1]} 41... Kc5 {[%clk
0:00:02.5]} 42. a3 {[%clk 0:00:37]} 42... Kb6 {[%clk 0:00:02.3]} 43. b4 {[%clk
0:00:36.7]} 43... Kc7 {[%clk 0:00:03.2]} 44. Rd5 {[%clk 0:00:28.5]} 44... Nd8
{[%clk 0:00:03]} 45. Re7+ {[%clk 0:00:28.1]} 45... Kc8 {[%clk 0:00:03.7]} 46.
Rxf5 {[%clk 0:00:25.9]} 46... Bc6 {[%clk 0:00:02.5]} 47. b5 {[%clk 0:00:24.2]}
47... axb5 {[%clk 0:00:02.4]} 48. cxb5 {[%clk 0:00:25.1]} 48... Bd7 {[%clk
0:00:03.3]} 49. Rc5+ {[%clk 0:00:25.5]} 49... Kb8 {[%clk 0:00:02.3]} 50. Rxd7
{[%clk 0:00:25.6]} 50... Ne6 {[%clk 0:00:02.7]} 51. Re5 {[%clk 0:00:24.6]} 51...
Nd4 {[%clk 0:00:02.9]} 52. Rxd4 {[%clk 0:00:24.6]} 52... Rc8 {[%clk 0:00:02.3]}
53. a4 {[%clk 0:00:24.4]} 53... Rc2+ {[%clk 0:00:03.1]} 54. Kf3 {[%clk
0:00:24.9]} 54... Rc3+ {[%clk 0:00:03.9]} 55. Kg4 {[%clk 0:00:25.5]} 55... Rc7
{[%clk 0:00:03.6]} 56. Rde4 {[%clk 0:00:26.1]} 56... Rg7+ {[%clk 0:00:03.6]} 57.
Rg5 {[%clk 0:00:26.6]} 57... Rf7 {[%clk 0:00:04.5]} 58. h5 {[%clk 0:00:27.1]}
58... Kb7 {[%clk 0:00:04.9]} 59. h6 {[%clk 0:00:27.6]} 59... Kb6 {[%clk
0:00:05.8]} 60. Rg7 {[%clk 0:00:27.5]} 60... Rf6 {[%clk 0:00:06.3]} 61. h7
{[%clk 0:00:27.8]} 61... Rh6 {[%clk 0:00:07.2]} 62. Kg5 {[%clk 0:00:27.5]} 62...
Rh1 {[%clk 0:00:07.9]} 63. Re6+ {[%clk 0:00:27.9]} 63... Ka5 {[%clk 0:00:07.9]}
64. Rh6 {[%clk 0:00:28.8]} 64... Kb4 {[%clk 0:00:08.8]} 65. Rxh1 {[%clk
0:00:29]} 65... Ka5 {[%clk 0:00:09.7]} 66. h8=Q {[%clk 0:00:28.8]} 66... Kxa4
{[%clk 0:00:10.6]} 67. Ra1+ {[%clk 0:00:28.7]} 67... Kxb5 {[%clk 0:00:11.5]} 68.
Rb7+ {[%clk 0:00:28.8]} 68... Kc5 {[%clk 0:00:12.4]} 69. Qc8+ {[%clk 0:00:29]}
69... Kd5 {[%clk 0:00:13.3]} 70. Rd1+ {[%clk 0:00:27]} 70... Ke4 {[%clk
0:00:14.2]} 71. Qe6+ {[%clk 0:00:25.3]} 71... Kf3 {[%clk 0:00:15.1]} 72. Rb3+
{[%clk 0:00:24.6]} 72... Kg2 {[%clk 0:00:16]} 73. Qe2+ {[%clk 0:00:24.3]} 73...
Kh3 {[%clk 0:00:16.9]} 74. Rh1# {[%clk 0:00:24]} 1-0

[Event "Early-Titled-Tuesday-Blitz-March-26-2024"]
[Site "Chess.com"]
[Date "2024.03.26"]
[Round "3"]
[White "Marielchessy"]
[Black "ragnaroek66"]
[Result "1-0"]
[WhiteElo "2337"]
[BlackElo "2518"]
[TimeControl "180+1"]
[EndTime "8:29:35 PDT"]
[Termination "Marielchessy won by checkmate"]

1. e4 {[%clk 0:03:00.9]} 1... c5 {[%clk 0:02:59.3]} 2. Nf3 {[%clk 0:03:01]} 2...
Nc6 {[%clk 0:02:59.7]} 3. d4 {[%clk 0:03:00]} 3... cxd4 {[%clk 0:03:00.2]} 4.
Nxd4 {[%clk 0:03:00.2]} 4... Nf6 {[%clk 0:03:00.9]} 5. Nc3 {[%clk 0:03:00.1]}
5... d6 {[%clk 0:03:01.4]} 6. Bc4 {[%clk 0:02:59.7]} 6... Qb6 {[%clk 0:03:00.2]}
7. Nde2 {[%clk 0:02:59.6]} 7... e6 {[%clk 0:02:37]} 8. O-O {[%clk 0:02:59.3]}
8... a6 {[%clk 0:02:37.1]} 9. Bb3 {[%clk 0:02:59.5]} 9... Na5 {[%clk 0:02:27.3]}
10. Bg5 {[%clk 0:02:58.4]} 10... Nxb3 {[%clk 0:02:25.8]} 11. axb3 {[%clk
0:02:58.2]} 11... Be7 {[%clk 0:02:25.2]} 12. Ng3 {[%clk 0:02:57.5]} 12... Qc5
{[%clk 0:02:10.6]} 13. Bxf6 {[%clk 0:02:44.8]} 13... Bxf6 {[%clk 0:02:10]} 14.
Nh5 {[%clk 0:02:44.7]} 14... Bd7 {[%clk 0:01:38.7]} 15. Kh1 {[%clk 0:02:33]}
15... Rg8 {[%clk 0:01:32.2]} 16. Nxf6+ {[%clk 0:02:23.7]} 16... gxf6 {[%clk
0:01:33.1]} 17. f4 {[%clk 0:02:16.2]} 17... O-O-O {[%clk 0:01:20.1]} 18. f5
{[%clk 0:02:15.8]} 18... Qe5 {[%clk 0:01:17.4]} 19. b4 {[%clk 0:02:13.2]} 19...
h5 {[%clk 0:01:08.5]} 20. Ra5 {[%clk 0:02:13]} 20... d5 {[%clk 0:00:58.9]} 21.
exd5 {[%clk 0:02:12.5]} 21... Bc6 {[%clk 0:00:54.7]} 22. Qf3 {[%clk 0:01:31]}
22... exd5 {[%clk 0:00:54.2]} 23. b5 {[%clk 0:01:22.9]} 23... d4 {[%clk
0:00:45.8]} 24. bxc6 {[%clk 0:01:21.7]} 24... Qxa5 {[%clk 0:00:46]} 25. cxb7+
{[%clk 0:01:19.6]} 25... Kb8 {[%clk 0:00:45.9]} 26. Ne4 {[%clk 0:01:17.5]} 26...
Rge8 {[%clk 0:00:34.3]} 27. Nxf6 {[%clk 0:01:14.8]} 27... Re1 {[%clk 0:00:34]}
28. Qg3+ {[%clk 0:01:15]} 28... Kxb7 {[%clk 0:00:32.5]} 29. Rxe1 {[%clk
0:01:09.7]} 29... Qxf5 {[%clk 0:00:30.8]} 30. Re7+ {[%clk 0:00:58.2]} 30... Ka8
{[%clk 0:00:30.2]} 31. Qf3+ {[%clk 0:00:57.4]} 31... Qxf3 {[%clk 0:00:29.1]} 32.
gxf3 {[%clk 0:00:57.8]} 32... d3 {[%clk 0:00:30]} 33. cxd3 {[%clk 0:00:55.2]}
33... Rxd3 {[%clk 0:00:30.9]} 34. Rxf7 {[%clk 0:00:50.8]} 34... Rxf3 {[%clk
0:00:30.2]} 35. Kg2 {[%clk 0:00:43.8]} 35... Rb3 {[%clk 0:00:29.2]} 36. Nxh5
{[%clk 0:00:40.5]} 36... Rxb2+ {[%clk 0:00:29.3]} 37. Rf2 {[%clk 0:00:40.5]}
37... Rb5 {[%clk 0:00:28.3]} 38. Nf6 {[%clk 0:00:37.6]} 38... Rg5+ {[%clk
0:00:27.2]} 39. Kf3 {[%clk 0:00:35.3]} 39... Rf5+ {[%clk 0:00:21.8]} 40. Ke3
{[%clk 0:00:33.7]} 40... Re5+ {[%clk 0:00:20.1]} 41. Kd4 {[%clk 0:00:33.4]}
41... Re1 {[%clk 0:00:18.6]} 42. Nd5 {[%clk 0:00:31.4]} 42... Kb7 {[%clk
0:00:18.5]} 43. Rf7+ {[%clk 0:00:29.2]} 43... Kc6 {[%clk 0:00:18.9]} 44. Rf6+
{[%clk 0:00:29.1]} 44... Kb5 {[%clk 0:00:18.9]} 45. Nc7+ {[%clk 0:00:29.3]}
45... Kb4 {[%clk 0:00:18.3]} 46. Nxa6+ {[%clk 0:00:28.4]} 46... Kb3 {[%clk
0:00:18.5]} 47. Nc5+ {[%clk 0:00:28.6]} 47... Kc2 {[%clk 0:00:18.6]} 48. Rf2+
{[%clk 0:00:25.9]} 48... Kb1 {[%clk 0:00:18.2]} 49. h4 {[%clk 0:00:24.9]} 49...
Rh1 {[%clk 0:00:17.8]} 50. Rf4 {[%clk 0:00:23]} 50... Rd1+ {[%clk 0:00:16.8]}
51. Ke5 {[%clk 0:00:23]} 51... Rc1 {[%clk 0:00:17.2]} 52. Ne4 {[%clk 0:00:21.1]}
52... Rh1 {[%clk 0:00:16.1]} 53. Kf6 {[%clk 0:00:18.4]} 53... Kc2 {[%clk
0:00:16.3]} 54. Kg5 {[%clk 0:00:17.6]} 54... Rh2 {[%clk 0:00:15]} 55. h5 {[%clk
0:00:17.6]} 55... Kd3 {[%clk 0:00:15.3]} 56. h6 {[%clk 0:00:15.6]} 56... Ke3
{[%clk 0:00:12.9]} 57. Rg4 {[%clk 0:00:14.2]} 57... Kd4 {[%clk 0:00:09.5]} 58.
Ng3+ {[%clk 0:00:11.7]} 58... Ke5 {[%clk 0:00:09.1]} 59. Re4+ {[%clk 0:00:11.5]}
59... Kd5 {[%clk 0:00:09.2]} 60. Re8 {[%clk 0:00:10.4]} 60... Rh3 {[%clk
0:00:08.9]} 61. Nh5 {[%clk 0:00:10.1]} 61... Kd6 {[%clk 0:00:08.1]} 62. h7
{[%clk 0:00:09.8]} 62... Rh1 {[%clk 0:00:08.7]} 63. h8=Q {[%clk 0:00:09.3]}
63... Rg1+ {[%clk 0:00:09.6]} 64. Kh6 {[%clk 0:00:09.7]} 64... Rf1 {[%clk
0:00:09]} 65. Qe5+ {[%clk 0:00:09.8]} 65... Kc6 {[%clk 0:00:08.8]} 66. Re6+
{[%clk 0:00:09.6]} 66... Kd7 {[%clk 0:00:09.5]} 67. Qd6+ {[%clk 0:00:09.7]}
67... Kc8 {[%clk 0:00:10.3]} 68. Re8+ {[%clk 0:00:08.1]} 68... Kb7 {[%clk
0:00:11.2]} 69. Rb8+ {[%clk 0:00:08.2]} 69... Ka7 {[%clk 0:00:12.1]} 70. Qb6#
{[%clk 0:00:08.1]} 1-0